bitfinex-derivatives/quotes_ETHF0:USTF0_20250918
["timestamp","ask_amount","ask_price","bid_price","bid_amount"]
[1758233307655,0.7139,4592.7,4592.6,3.9103]
[1758233308056,0.7139,4592.7,4592.6,3.2078]
[1758233308361,0.7139,4592.7,4592.6,3.4077]
[1758233308660,0.7139,4592.7,4592.6,3.5996]
[1758233308855,0.5146,4592.7,4592.6,3.8992]
[1758233309557,0.2076,4592.7,4592.6,3.4077]
[1758233309766,0.5068,4592.7,4592.6,3.8992]
[1758233311660,0.7195,4592.7,4592.6,3.4077]
[1758233312064,0.7195,4592.7,4592.6,3.8992]
[1758233312261,0.5068,4592.7,4592.6,0.6914]
[1758233312765,0.7195,4592.7,4592.6,0.6914]
[1758233314765,0.5068,4592.7,4592.6,0.6914]
[1758233314967,0.2992,4592.7,4592.6,0.6914]
[1758233315162,0.5068,4592.7,4592.6,0.6914]
[1758233315467,0.7195,4592.7,4592.6,0.3918]
[1758233315656,0.7195,4592.7,4592.6,0.6914]
[1758233315861,0.7195,4592.7,4592.6,3.8992]
[1758233321269,0.7195,4592.7,4592.6,3.2078]
[1758233321469,0.8424,4592.5,4592.4,0.0217]
[1758233321969,0.8424,4592.5,4592.2,0.219]
[1758233323969,0.8424,4592.5,4592.4,0.1999]
[1758233324168,0.8424,4592.5,4592.4,0.6914]
[1758233324365,0.5068,4592.5,4592.4,0.6914]
[1758233324773,0.6297,4592.5,4592.4,0.6914]
[1758233324975,0.8424,4592.5,4592.4,0.1999]
[1758233325179,0.6297,4592.5,4592.4,0.6914]
[1758233325370,0.8424,4592.5,4592.4,0.3918]
[1758233327176,0.8424,4592.5,4592.3,0.219]
[1758233327777,0.8424,4592.5,4592.4,0.1999]
[1758233329177,1.40593552,4592.5,4592.4,0.1999]
[1758233329673,0.8424,4592.5,4592.4,0.1999]
[1758233330274,1.4060551,4592.5,4592.4,0.1999]
[1758233330771,1.4060551,4592.5,4592.2,0.0217]
[1758233331072,0.8424,4592.5,4592.2,0.0217]
[1758233331276,0.7195,4592.3,4592.2,0.0217]
[1758233331677,0.2992,4592.2,4592.0,3.4268]
[1758233331978,0.7195,4592.2,4592.1,0.6914]
[1758233334777,0.1229,4592.5,4592.1,1.08318]
[1758233335081,0.85309791,4592.4,4592.3,0.71]
[1758233335380,1.305996,4592.4,4592.3,0.71]
[1758233337576,1.503196,4592.4,4592.3,0.71]
[1758233339182,1.50318879,4592.4,4592.3,0.71]
[1758233340581,1.50318879,4592.4,4592.3,0.4076]
[1758233351992,1.50318879,4592.4,4592.3,0.7065]
[1758233353096,1.50318879,4592.4,4592.3,0.4076]
[1758233353700,1.50318879,4592.4,4592.3,0.2033]
[1758233354301,1.50427831,4592.4,4592.3,0.415]
[1758233354498,1.50427831,4592.4,4592.3,0.2033]
[1758233354701,1.50427831,4592.4,4592.2,0.219]
[1758233354900,1.52797831,4592.3,4592.2,0.219]
[1758233355196,1.21417831,4592.3,4592.0,3.2078]
[1758233355400,0.7072,4592.1,4592.0,3.4018]
[1758233355602,0.7072,4592.1,4592.0,3.6208]
[1758233356304,0.7072,4592.1,4592.0,3.2078]
[1758233356492,1.27081646,4592.1,4592.0,3.4268]
[1758233357399,0.7072,4592.1,4592.0,3.4268]
[1758233358200,1.27081666,4592.1,4592.0,3.2078]
[1758233358400,0.7072,4592.1,4592.0,3.2078]
[1758233358801,1.27088731,4592.1,4592.0,3.2078]
[1758233360403,1.52873921,4592.1,4592.0,3.2078]
[1758233360600,0.7072,4591.4,4591.3,4.4184]
[1758233360800,0.7072,4591.4,4591.3,5.148]
[1758233361304,0.7072,4591.4,4591.3,4.8491]
[1758233361500,0.7072,4591.4,4591.3,3.8325]
[1758233362108,0.7072,4591.4,4591.3,3.6208]
[1758233362508,0.7072,4591.4,4591.3,4.1314]
[1758233363007,0.7072,4591.4,4591.3,3.8325]
[1758233364606,0.3138,4591.4,4591.3,4.1314]
[1758233365002,0.1164,4592.0,4591.3,4.1314]
[1758233365205,0.5066,4591.8,4591.7,0.7046]
[1758233365509,1.27085957,4591.8,4591.7,0.7046]
[1758233365704,1.27085957,4591.8,4591.7,0.194]
[1758233369113,1.27085957,4591.8,4591.6,0.219]
[1758233369409,0.7072,4591.8,4591.6,0.219]
[1758233370915,0.7072,4591.8,4591.7,0.1986]
[1758233371212,1.27065068,4591.8,4591.7,0.1986]
[1758233372408,0.7072,4591.8,4591.7,0.1986]
[1758233373514,0.7072,4591.8,4591.7,0.4103]
[1758233373714,0.7072,4591.8,4591.7,0.6999]
[1758233374515,0.7072,4591.8,4591.7,0.4103]
[1758233375306,0.3182,4592.4,4591.8,0.2896]
[1758233375508,0.7034,4592.4,4592.3,0.1986]
[1758233375712,1.51488817,4592.4,4592.3,0.1986]
[1758233377518,1.51488817,4592.4,4591.9,0.9189]
[1758233377519,0.5037,4592.0,4591.9,0.9189]
[1758233377814,0.3182,4592.0,4591.9,1.3107]
[1758233380121,0.70999,4592.0,4591.9,1.3107]
[1758233381618,0.3182,4592.0,4591.9,1.3107]
[1758233381814,0.3147,4592.5,4592.4,0.4103]
[1758233382015,1.63809301,4592.5,4592.4,0.4103]
[1758233382415,1.38989108,4592.5,4592.4,0.4103]
[1758233382720,1.63809795,4592.5,4592.4,0.4103]
[1758233383314,1.38989108,4592.5,4592.4,0.4103]
[1758233384022,1.63810889,4592.5,4592.4,0.4103]
[1758233387023,1.38989108,4592.5,4592.4,0.4103]
[1758233388525,1.63812238,4592.5,4592.2,0.219]
[1758233388721,0.7034,4592.3,4592.2,0.4176]
[1758233388922,1.26699108,4592.3,4592.2,0.4176]
[1758233390520,1.26699108,4592.3,4592.2,0.219]
[1758233390728,0.7034,4591.9,4591.8,3.6254]
[1758233391820,0.7034,4591.9,4591.8,3.8371]
[1758233392029,0.7034,4591.9,4591.8,4.1267]
[1758233393223,0.51,4591.9,4591.8,4.51851]
[1758233393420,0.5081,4592.5,4592.4,0.1986]
[1758233393624,1.39004477,4592.5,4592.4,0.4103]
[1758233393931,1.39004477,4592.5,4592.4,0.6999]
[1758233395731,1.39004477,4592.5,4592.4,0.4103]
[1758233399134,1.39004477,4592.5,4592.4,0.1986]
[1758233400040,1.39004477,4592.5,4592.1,0.219]
[1758233400230,0.6986,4592.2,4592.1,0.219]
[1758233400836,0.6986,4592.2,4592.1,0.9156]
[1758233401037,0.4919,4592.2,4592.1,0.9156]
[1758233401333,0.6986,4592.2,4592.1,0.2009]
[1758233401826,0.6986,4592.2,4592.1,0.6966]
[1758233402027,0.4919,4592.2,4592.1,0.6966]
[1758233402531,0.6986,4592.2,4592.1,0.6966]
[1758233403234,0.4919,4592.2,4592.1,0.9156]
[1758233404035,0.6986,4592.2,4592.1,0.9156]
[1758233404238,0.6986,4592.2,4592.1,0.399]
[1758233404429,0.6986,4592.2,4592.1,0.618]
[1758233405133,0.1235,4592.0,4591.9,0.0217]
[1758233405334,0.8221,4592.0,4591.9,0.2407]
[1758233405533,0.8221,4592.0,4591.9,0.219]
[1758233406032,0.5282,4592.0,4591.8,3.2078]
[1758233406334,0.6986,4591.9,4591.8,3.2078]
[1758233406536,1.0904,4591.9,4591.8,3.4268]
[1758233408437,1.0904,4591.9,4591.8,3.6277]
[1758233409234,1.0904,4591.9,4591.8,3.4268]
[1758233410637,1.0904,4591.9,4591.8,3.4087]
[1758233410937,1.0904,4591.9,4591.8,3.6277]
[1758233411331,1.0904,4591.9,4591.8,3.8258]
[1758233411936,1.0904,4591.9,4591.8,4.1234]
[1758233412736,1.0904,4591.9,4591.8,3.8258]
[1758233413139,0.8837,4591.9,4591.8,3.9044]
[1758233413341,0.6857,4591.9,4591.8,4.1234]
[1758233413538,0.8837,4591.9,4591.8,4.1234]
[1758233413940,0.8837,4591.9,4591.8,3.9044]
[1758233414139,0.8837,4591.9,4591.8,4.1234]
[1758233415943,1.0904,4591.9,4591.8,4.1234]
[1758233416140,1.0904,4591.9,4591.8,3.8258]
[1758233417445,1.0904,4591.9,4591.8,4.1234]
[1758233417947,1.0904,4591.9,4591.8,3.6277]
[1758233418346,1.0904,4591.9,4591.8,3.4087]
[1758233418550,1.0904,4591.9,4591.8,3.6277]
[1758233418746,1.0904,4591.9,4591.8,4.1234]
[1758233419851,1.0904,4591.9,4591.8,3.8258]
[1758233420250,1.0904,4591.9,4591.8,3.6068]
[1758233420452,1.0904,4591.9,4591.8,3.6277]
[1758233421246,1.0904,4591.9,4591.8,3.4087]
[1758233421652,1.0904,4591.9,4591.8,3.4268]
[1758233422452,1.0904,4591.9,4591.8,3.2078]
[1758233422652,1.26146565,4591.9,4591.8,0.219]
[1758233423358,1.26146565,4591.9,4591.8,0.4199]
[1758233426555,1.26146565,4591.9,4591.8,0.399]
[1758233426756,1.26146565,4591.9,4591.8,0.6966]
[1758233427061,1.26146565,4591.9,4591.8,0.399]
[1758233432869,1.26146565,4591.9,4591.8,3.9151]
[1758233433062,0.4919,4591.9,4591.8,3.9151]
[1758233438558,1.05328963,4591.9,4591.8,3.9151]
[1758233438763,0.4919,4591.9,4591.8,3.9151]
[1758233439568,1.05331819,4591.9,4591.8,3.9151]
[1758233440070,1.05331503,4591.9,4591.8,3.9151]
[1758233440471,1.24811503,4591.9,4591.8,3.9151]
[1758233441366,1.24811503,4591.9,4591.8,3.6068]
[1758233441571,1.24811503,4591.9,4591.8,3.8258]
[1758233443075,1.24811503,4591.9,4591.8,3.4087]
[1758233443275,1.24811503,4591.9,4591.8,3.4268]
[1758233443572,1.24811503,4591.9,4591.8,3.6354]
[1758233443780,1.24811503,4591.9,4591.8,4.1403]
[1758233443972,1.05331503,4591.9,4591.8,4.1403]
[1758233445476,1.24811503,4591.9,4591.8,4.1403]
[1758233446177,1.24811503,4591.9,4591.8,3.832]
[1758233446574,1.24811503,4591.9,4591.8,3.6354]
[1758233446779,1.24811503,4591.9,4591.8,0.219]
[1758233447781,1.24811503,4591.9,4591.6,0.0217]
[1758233447982,0.397,4591.7,4591.6,0.0217]
[1758233448176,0.7104,4591.7,4591.6,0.2407]
[1758233448375,0.7104,4591.7,4591.6,0.219]
[1758233448582,0.397,4591.7,4591.3,3.2078]
[1758233448785,0.8366,4591.5,4591.4,0.4276]
[1758233448985,0.8366,4591.5,4591.4,0.2086]
[1758233449185,0.8366,4591.5,4591.4,0.219]
[1758233449683,0.8366,4591.5,4591.4,0.4276]
[1758233450385,0.8366,4591.5,4591.4,0.9325]
[1758233451682,0.8366,4591.5,4591.4,0.6242]
[1758233453786,0.8366,4591.5,4591.4,0.9325]
[1758233455385,0.8366,4591.5,4591.4,0.6242]
[1758233457482,0.8366,4591.5,4591.4,0.9411]
[1758233458984,0.8366,4591.5,4591.4,0.7221]
[1758233459188,0.8366,4591.5,4591.4,0.9411]
[1758233459587,0.8366,4591.5,4591.4,0.6242]
[1758233461184,0.8366,4591.5,4591.4,0.4276]
[1758233464886,0.8366,4591.5,4591.4,0.623]
[1758233467692,0.8366,4591.5,4591.4,1.01484]
[1758233468291,0.8366,4591.5,4591.4,1.30454]
[1758233471394,0.8366,4591.5,4591.4,1.08554]
[1758233471591,0.8366,4591.5,4591.4,1.30454]
[1758233472096,0.8366,4591.5,4591.4,0.9127]
[1758233472694,0.8366,4591.5,4591.4,1.30454]
[1758233474898,0.3134,4591.5,4591.4,1.30454]
[1758233475194,0.4942,4591.9,4591.8,0.6811]
[1758233475388,1.05469715,4591.9,4591.8,0.6811]
[1758233476799,1.24949715,4591.9,4591.8,0.6811]
[1758233479196,1.05469715,4591.9,4591.8,0.6811]
[1758233479602,1.24949715,4591.9,4591.8,0.3914]
[1758233484299,1.24949715,4591.9,4591.8,0.78321]
[1758233484504,1.24949715,4591.9,4591.8,3.8889]
[1758233490206,1.24949715,4591.9,4591.8,3.5992]
[1758233496406,1.24949715,4591.9,4591.8,3.9062]
[1758233496806,1.24949715,4591.9,4591.8,4.1252]
[1758233497006,1.24949715,4591.9,4591.8,3.8182]
[1758233498505,1.24949715,4591.9,4591.8,4.1252]
[1758233499708,1.05469715,4591.9,4591.8,4.1252]
[1758233500810,0.56049715,4591.9,4591.8,4.1252]
[1758233501307,0.84879715,4591.9,4591.8,4.1252]
[1758233503111,0.56049715,4591.9,4591.8,4.1252]
[1758233503318,0.2883,4592.5,4592.4,0.4033]
[1758233503514,0.92580237,4592.5,4592.4,0.9293]
[1758233503715,1.48599122,4592.5,4592.4,0.9293]
[1758233503921,0.56018885,4592.5,4592.4,0.9293]
[1758233504114,0.39175,4592.5,4592.4,0.9293]
[1758233507413,0.68005,4592.5,4592.4,0.9293]
[1758233508518,0.39175,4592.5,4592.4,0.9293]
[1758233509320,0.1229,4593.0,4592.4,0.6223]
[1758233509523,0.39171,4592.9,4592.8,0.4033]
[1758233509716,0.39171,4592.9,4592.8,0.6223]
[1758233510123,0.39171,4592.9,4592.8,0.9293]
[1758233510323,0.2883,4593.4,4592.8,0.6223]
[1758233510527,0.3917,4593.1,4593.0,0.7103]
[1758233510826,0.2883,4593.7,4593.3,0.4033]
[1758233511026,3.9059,4593.9,4593.8,0.4033]
[1758233511227,4.71020095,4593.9,4593.8,0.6223]
[1758233511428,4.4650073,4593.9,4593.8,0.6223]
[1758233512324,0.6981,4593.9,4593.8,0.9293]
[1758233515030,0.6981,4593.9,4593.8,0.6223]
[1758233515434,0.6981,4593.9,4593.8,0.9384]
[1758233518339,0.6981,4593.9,4593.8,0.6223]
[1758233523346,0.6981,4593.9,4593.8,0.4033]
[1758233523748,0.6981,4593.9,4593.8,0.2029]
[1758233524647,0.6981,4593.9,4593.7,0.219]
[1758233526133,0.6981,4593.9,4593.3,3.5211]
[1758233526346,0.6932,4593.4,4593.3,3.2078]
[1758233526539,0.6932,4593.4,4593.3,3.4268]
[1758233526735,0.6932,4593.4,4593.3,3.2078]
[1758233530645,0.6932,4593.4,4593.0,0.219]
[1758233531541,0.1203,4593.0,4592.9,0.1984]
[1758233531750,0.1203,4593.0,4592.9,0.9415]
[1758233531751,0.8135,4593.0,4592.9,0.9415]
[1758233536049,0.8135,4593.0,4592.9,0.2108]
[1758233536255,0.8135,4593.0,4592.9,0.219]
[1758233538152,0.8135,4593.0,4592.9,0.4298]
[1758233539049,0.8135,4593.0,4592.9,0.6282]
[1758233539240,0.8135,4593.0,4592.9,0.9415]
[1758233539854,0.2876,4593.0,4592.9,0.9415]
[1758233543654,0.1264,4594.0,4593.4,0.3133]
[1758233543855,0.3195,4593.5,4593.4,0.7225]
[1758233544057,0.6071,4593.5,4593.4,0.7225]
[1758233544257,1.37262044,4593.5,4593.4,0.7225]
[1758233544756,1.61789304,4593.5,4593.4,0.4092]
[1758233545558,1.61789304,4593.5,4593.4,0.2108]
[1758233545760,1.61789304,4593.5,4593.3,0.219]
[1758233545958,1.25232044,4593.4,4593.3,0.4298]
[1758233546155,1.25232044,4593.4,4593.3,0.9415]
[1758233546353,0.84672044,4593.4,4593.3,0.9415]
[1758233547259,1.04592044,4593.4,4593.3,0.9415]
[1758233547460,1.25232044,4593.4,4593.3,0.9415]
[1758233548762,1.25232044,4593.4,4593.3,0.6282]
[1758233549659,1.25232044,4593.4,4593.3,0.9189]
[1758233550565,0.84672044,4593.4,4593.3,0.9189]
[1758233550760,0.84882365,4593.4,4593.3,0.9189]
[1758233551359,1.23492365,4593.4,4593.3,0.6282]
[1758233551559,1.48034632,4593.4,4593.2,0.219]
[1758233551864,1.23792365,4593.3,4593.2,0.219]
[1758233553260,1.48341163,4593.3,4593.2,0.219]
[1758233556661,1.48341163,4593.3,4593.1,0.0217]
[1758233556862,1.48341163,4593.2,4593.1,0.0217]
[1758233557265,1.48341163,4593.2,4592.5,3.2078]
[1758233557266,0.3861,4592.6,4592.5,3.2078]
[1758233557466,0.6767,4592.6,4592.5,3.2078]
[1758233559067,1.49213278,4592.6,4592.5,3.2078]
[1758233559262,1.23798514,4592.6,4592.5,3.2078]
[1758233560362,1.23743472,4592.6,4592.5,3.2078]
[1758233560568,1.49129758,4592.6,4592.5,3.2078]
[1758233560963,1.49129758,4592.6,4592.5,3.4084]
[1758233561364,1.23743472,4592.6,4592.5,3.2078]
[1758233561565,0.3861,4592.4,4592.3,0.0217]
[1758233561764,0.6767,4592.4,4592.3,0.0217]
[1758233562771,0.2906,4592.3,4592.0,3.2078]
[1758233562973,0.6767,4592.1,4592.0,4.12]
[1758233563670,0.6767,4592.1,4592.0,3.8293]
[1758233567475,0.6767,4592.1,4592.0,3.6103]
[1758233567770,0.6767,4592.1,4592.0,3.6274]
[1758233568673,0.6767,4592.1,4592.0,3.2078]
[1758233569676,0.6767,4592.1,4592.0,3.4084]
[1758233570568,0.6767,4592.1,4592.0,3.901]
[1758233572372,0.3861,4591.9,4591.8,0.0217]
[1758233572579,0.6767,4591.9,4591.8,0.0217]
[1758233572769,0.6767,4591.9,4591.6,0.219]
[1758233573668,0.1269,4591.5,4591.4,0.2006]
[1758233573878,0.8036,4591.5,4591.4,0.4196]
[1758233574172,0.8036,4591.5,4591.4,0.6215]
[1758233574571,0.8036,4591.5,4591.4,0.9393]
[1758233575979,0.6119,4591.5,4591.4,0.7161]
[1758233576170,0.2906,4591.5,4591.4,0.9351]
[1758233576778,0.8187,4591.5,4591.4,0.9351]
[1758233577680,1.01573,4591.5,4591.4,0.9351]
[1758233577880,1.09284,4591.4,4591.3,3.2078]
[1758233578179,1.09285,4591.3,4591.2,1.4593]
[1758233578577,1.09285,4591.3,4591.2,1.6306]
[1758233579379,1.09285,4591.3,4591.2,1.9418]
[1758233580376,0.90115,4591.3,4591.2,1.9418]
[1758233583074,1.09285,4591.3,4591.2,1.0166]
[1758233583280,1.09285,4591.3,4591.2,1.2186]
[1758233583479,1.09285,4591.3,4591.2,1.4376]
[1758233584176,1.09285,4591.3,4591.2,0.421]
[1758233584581,1.09285,4591.3,4591.2,0.9252]
[1758233586077,1.09285,4591.3,4591.2,0.614]
[1758233587378,1.09285,4591.3,4591.0,0.3329]
[1758233587379,0.701,4591.3,4591.0,0.0217]
[1758233587579,0.701,4591.3,4591.1,0.219]
[1758233589781,0.701,4591.3,4591.0,0.0217]
[1758233590079,0.701,4591.3,4591.0,0.2407]
[1758233590682,0.701,4591.3,4591.2,0.202]
[1758233590980,0.701,4591.3,4591.0,0.2407]
[1758233591174,0.701,4591.3,4591.0,0.0217]
[1758233591380,0.701,4590.7,4590.6,1.0166]
[1758233591676,1.26489475,4590.7,4590.6,1.0166]
[1758233592677,1.26489475,4590.7,4590.2,0.219]
[1758233592678,0.1166,4590.5,4590.4,0.202]
[1758233592877,0.8176,4590.5,4590.4,0.202]
[1758233594175,0.8176,4590.5,4590.2,0.219]
[1758233594576,0.1166,4590.0,4589.9,1.0166]
[1758233594779,1.20956,4590.0,4589.9,1.4376]
[1758233595175,1.20956,4590.0,4589.9,1.4116]
[1758233595381,1.20956,4590.0,4589.9,1.6306]
[1758233595881,1.20956,4590.0,4589.9,1.9418]
[1758233596278,1.20956,4590.0,4589.9,1.2186]
[1758233596481,1.20956,4590.0,4589.9,1.4116]
[1758233596681,1.20956,4590.0,4589.9,1.7228]
[1758233598281,1.20956,4590.0,4589.9,0.7062]
[1758233598676,0.701,4589.9,4589.8,3.2078]
[1758233598979,1.2096,4589.5,4589.4,1.0166]
[1758233599380,1.2096,4589.5,4589.4,1.2186]
[1758233599680,1.2096,4589.5,4589.4,1.4116]
[1758233599881,1.2096,4589.5,4589.4,0.395]
[1758233600478,0.392,4589.5,4589.4,0.7062]
[1758233600980,0.392,4589.5,4589.4,0.9252]
[1758233601181,0.6888,4589.5,4589.4,0.9252]
[1758233601773,0.392,4589.5,4589.4,0.9252]
[1758233602271,0.9013,4589.5,4589.4,0.9252]
[1758233602679,0.6888,4589.5,4589.4,0.9252]
[1758233602887,0.392,4589.5,4589.4,0.9252]
[1758233603682,0.9013,4589.5,4589.4,0.9252]
[1758233603883,1.2096,4589.5,4589.4,0.614]
[1758233605188,1.2096,4589.5,4589.4,0.395]
[1758233605381,1.2096,4589.5,4589.4,0.614]
[1758233605584,0.5093,4589.5,4589.4,0.9252]
[1758233605988,0.2968,4589.5,4589.4,0.9252]
[1758233606689,0.5208,4590.0,4589.9,0.395]
[1758233606887,0.8176,4590.0,4589.9,0.395]
[1758233607189,0.8176,4590.0,4589.6,0.219]
[1758233607578,1.58502,4590.0,4589.6,0.219]
[1758233607785,1.09299,4589.7,4589.6,0.421]
[1758233608286,1.09299,4589.7,4589.6,0.9089]
[1758233609893,1.09299,4589.7,4589.6,0.6899]
[1758233610094,1.09299,4589.7,4589.6,0.9089]
[1758233610794,1.09299,4589.7,4589.6,0.614]
[1758233610992,1.09299,4589.7,4589.6,0.219]
[1758233611291,1.10311,4589.4,4589.3,3.2078]
[1758233611493,1.10311,4589.4,4589.3,3.4268]
[1758233612290,1.10311,4589.4,4589.3,3.6316]
[1758233612887,1.10311,4589.4,4589.3,3.4126]
[1758233613198,1.10311,4589.4,4589.3,3.6316]
[1758233613900,1.10311,4589.4,4589.3,3.2078]
[1758233614398,1.10311,4589.4,4589.3,3.4268]
[1758233614994,1.10311,4589.4,4589.3,3.2078]
[1758233615196,1.10311,4589.4,4589.3,3.6316]
[1758233616299,1.10311,4589.4,4589.3,3.2078]
[1758233616497,1.10311,4589.4,4589.3,3.4268]
[1758233619009,1.10311,4589.4,4589.3,3.6316]
[1758233619208,1.10311,4589.4,4589.3,0.4238]
[1758233621006,1.10311,4589.4,4589.3,0.219]
[1758233621902,0.3051,4589.3,4589.2,0.4238]
[1758233622107,0.7111,4589.3,4589.2,0.4238]
[1758233622907,0.5076,4589.3,4589.2,0.927]
[1758233623109,0.3051,4589.3,4589.2,0.927]
[1758233623413,0.5076,4589.3,4589.2,0.708]
[1758233625514,0.3051,4589.9,4589.2,0.4131]
[1758233625711,1.22279256,4589.8,4589.7,0.4131]
[1758233626111,1.22279256,4589.8,4589.7,0.708]
[1758233626314,1.32439256,4589.8,4589.7,0.708]
[1758233626718,1.32439256,4589.8,4589.7,0.927]
[1758233629819,0.81679256,4589.8,4589.7,0.927]
[1758233630016,0.56632012,4589.8,4589.7,0.927]
[1758233630819,0.87142012,4589.8,4589.7,0.927]
[1758233632018,1.66940012,4589.8,4589.7,0.4131]
[1758233632218,1.66940012,4589.8,4589.7,0.6321]
[1758233634323,1.66940012,4589.8,4589.7,0.4238]
[1758233634519,0.5123,4589.5,4589.4,3.2078]
[1758233634822,1.249,4589.5,4589.4,3.6204]
[1758233636225,1.249,4589.5,4589.4,3.8192]
[1758233637424,1.249,4589.5,4589.4,4.1094]
[1758233638320,1.249,4589.5,4589.4,3.6002]
[1758233638626,1.249,4589.5,4589.4,3.8192]
[1758233638921,1.249,4589.5,4589.4,4.1376]
[1758233640035,1.249,4589.5,4589.4,3.8192]
[1758233640925,1.249,4589.5,4589.4,4.1376]
[1758233641523,1.249,4589.5,4589.4,3.4014]
[1758233641723,1.249,4589.5,4589.4,3.8206]
[1758233642128,1.249,4589.5,4589.4,4.139]
[1758233642924,1.249,4589.5,4589.4,3.8206]
[1758233643427,1.249,4589.5,4589.4,4.139]
[1758233643622,0.392,4589.5,4589.4,4.139]
[1758233643922,0.392,4589.5,4589.4,3.92]
[1758233644128,0.392,4589.5,4589.4,4.139]
[1758233645517,0.392,4589.5,4589.4,3.92]
[1758233645724,0.392,4589.5,4589.4,4.139]
[1758233647232,0.6893,4589.5,4589.4,4.139]
[1758233652231,0.6893,4589.5,4589.4,3.92]
[1758233652436,0.6893,4589.5,4589.4,4.139]
[1758233655333,0.901,4589.5,4589.4,4.139]
[1758233655538,1.2309,4589.5,4589.4,3.8206]
[1758233655736,1.2309,4589.5,4589.4,3.6268]
[1758233657834,1.2309,4589.5,4589.4,4.139]
[1758233658534,1.2309,4589.5,4589.4,3.8206]
[1758233660643,1.2309,4589.5,4589.4,3.6016]
[1758233660842,1.2309,4589.5,4589.4,3.8206]
[1758233661342,1.79670381,4589.5,4589.4,3.8206]
[1758233661535,2.04769127,4589.5,4589.4,3.8206]
[1758233661739,1.79670381,4589.5,4589.4,3.8206]
[1758233661937,2.04768614,4589.5,4589.4,3.8206]
[1758233663045,2.04768614,4589.5,4589.4,3.6016]
[1758233663342,2.04768614,4589.5,4589.4,3.8206]
[1758233664241,1.79670381,4589.5,4589.4,3.8206]
[1758233664444,1.79670381,4589.5,4589.4,3.6016]
[1758233664638,1.79670381,4589.5,4589.4,3.8206]
[1758233664840,1.79583052,4589.5,4589.4,3.8206]
[1758233665145,1.79583052,4589.5,4589.4,3.6016]
[1758233665345,1.79583052,4589.5,4589.4,3.8206]
[1758233667945,1.79583052,4589.5,4589.4,4.1096]
[1758233669542,1.79583052,4589.5,4589.4,3.4268]
[1758233670555,1.79583052,4589.5,4589.4,3.2078]
[1758233670846,1.79583052,4589.5,4589.4,3.4268]
[1758233672051,1.79583052,4589.5,4589.4,3.2078]
[1758233672249,1.79583052,4589.5,4589.4,3.6281]
[1758233672648,1.79583052,4589.5,4589.4,3.4091]
[1758233672847,1.79583052,4589.5,4589.4,3.6281]
[1758233675052,1.79583052,4589.5,4589.4,4.1246]
[1758233675248,1.79583052,4589.5,4589.4,3.9056]
[1758233675448,1.79583052,4589.5,4589.4,4.1246]
[1758233676546,1.25423052,4589.5,4589.4,4.1246]
[1758233676849,1.45873052,4589.5,4589.4,3.9056]
[1758233677049,1.45873052,4589.5,4589.4,4.1246]
[1758233677852,1.77933052,4589.5,4589.4,3.9056]
[1758233678048,1.77933052,4589.5,4589.4,3.8356]
[1758233678246,1.25423052,4589.5,4589.4,4.1246]
[1758233678452,1.45873052,4589.5,4589.4,4.1246]
[1758233680155,1.25423052,4589.5,4589.4,4.1246]
[1758233681257,1.45873052,4589.5,4589.4,4.1246]
[1758233682758,0.95693052,4589.5,4589.4,4.1246]
[1758233684453,0.392,4589.5,4589.4,4.1246]
[1758233685166,0.2936,4589.9,4589.4,4.1246]
[1758233685167,0.3356,4590.5,4589.8,0.6978]
[1758233685358,1.51521932,4590.4,4590.3,0.2013]
[1758233687353,1.51521932,4590.4,4590.1,0.219]
[1758233687658,0.6986,4590.2,4590.1,0.219]
[1758233687962,1.51521932,4590.2,4590.1,0.219]
[1758233688155,1.51521932,4590.2,4590.1,0.4203]
[1758233688353,1.51521932,4590.2,4590.1,0.6278]
[1758233688758,1.51521932,4590.2,4590.1,0.9168]
[1758233690656,1.51521932,4590.2,4590.1,0.6978]
[1758233695460,1.51248754,4590.2,4590.1,0.6978]
[1758233698280,1.51248754,4590.2,4590.1,0.4088]
[1758233699271,1.51251013,4590.2,4590.1,0.4088]
[1758233699467,1.26345895,4590.2,4590.1,0.4088]
[1758233699673,1.51251013,4590.2,4590.1,0.4088]
[1758233699874,1.51251013,4590.2,4590.1,0.2013]
[1758233700273,0.7137,4589.8,4589.7,0.4135]
[1758233700477,1.27855895,4589.8,4589.7,0.6119]
[1758233700772,1.27855895,4589.8,4589.7,0.92]
[1758233701578,1.27855895,4589.8,4589.7,0.219]
[1758233701776,1.27855895,4589.8,4589.7,0.4135]
[1758233703880,1.27855895,4589.8,4589.7,0.701]
[1758233704081,0.85755895,4589.8,4589.7,0.92]
[1758233704482,0.85755895,4589.8,4589.7,0.701]
[1758233704684,1.06575895,4589.8,4589.7,0.92]
[1758233706385,0.98585895,4589.8,4589.7,0.1945]
[1758233706678,0.98585895,4589.8,4589.7,0.701]
[1758233706880,1.06575895,4589.8,4589.7,0.701]
[1758233707080,0.85755895,4589.8,4589.7,0.701]
[1758233707781,0.56485895,4589.8,4589.7,0.701]
[1758233707982,0.1166,4590.5,4589.7,0.3929]
[1758233708184,0.5009,4590.3,4590.2,0.701]
[1758233708378,1.31236841,4590.3,4590.2,0.701]
[1758233709778,1.52516841,4590.3,4590.2,0.701]
[1758233710486,0.2927,4590.6,4590.3,0.3081]
[1758233710684,0.2927,4590.9,4590.8,0.701]
[1758233710885,0.2927,4590.9,4590.8,0.92]
[1758233711291,0.2927,4591.4,4590.8,0.6119]
[1758233711491,0.2927,4591.2,4591.1,3.4062]